fUSD/lending_fUSD_20240614
["ID","MTS","AMOUNT","RATE_DAILY","PERIOD"]
[329491984,1718392251197,-523.92876802,0.00021917,2]
[329491986,1718392251208,-474.23129653,0.00021917,2]
[329491988,1718392251227,-500.0,0.00021917,2]
[329491989,1718392251242,-500.0,0.00021917,2]
[329491991,1718392251253,-500.0,0.00021917,2]
[329491993,1718392251264,-500.0,0.00021917,2]
[329491994,1718392251275,-500.0,0.00021917,2]
[329491996,1718392251304,-500.0,0.00021917,2]
[329491997,1718392251315,-500.0,0.00021917,2]
[329491999,1718392251329,-500.0,0.00021917,2]
[329492001,1718392251349,-500.0,0.00021917,2]
[329492002,1718392251364,-500.0,0.00021917,2]
[329492005,1718392251378,-16422.51316238,0.00021917,2]
[329492022,1718392251605,-490.3621,0.00021917,2]
[329492023,1718392251620,-3087.12473762,0.00021917,2]
[329492025,1718392251631,-528.38245458,0.00021917,2]
[329492027,1718392251645,-570.21725239,0.00021917,2]
[329492028,1718392251659,-500.0,0.00021917,2]
[329492030,1718392251672,-500.0,0.00021917,2]
[329492031,1718392251683,-500.0,0.00021917,2]
[329492033,1718392251697,-500.0,0.00021917,2]
[329492034,1718392251711,-219.53605964,0.00021917,2]
[329492035,1718392251735,-148.65091824,0.00021917,2]
[329492037,1718392251786,-500.0,0.00021917,2]
[329492040,1718392251806,-588.61454824,0.00021917,2]
[329492042,1718392251825,-500.0,0.00021917,2]
[329492043,1718392251858,-500.0,0.00021917,2]
[329492045,1718392251870,-500.0,0.00021917,2]
[329492047,1718392251884,-500.0,0.00021917,2]
[329492049,1718392251897,-514.12215114,0.00021917,2]
[329492051,1718392251910,-500.0,0.00021917,2]
[329492053,1718392251922,-500.0,0.00021917,2]
[329492056,1718392251969,-500.0,0.00021917,2]
[329492058,1718392251986,-500.0,0.00021917,2]
[329492059,1718392252008,-500.0,0.00021917,2]
[329492060,1718392252024,-546.32,0.00021917,2]
[329492061,1718392252035,-500.0,0.00021917,2]
[329492062,1718392252060,-500.0,0.00021917,2]
[329492063,1718392252074,-500.0,0.00021917,2]
[329492064,1718392252086,-500.0,0.00021917,2]
[329492066,1718392252103,-500.0,0.00021917,2]
[329492068,1718392252114,-500.0,0.00021917,2]
[329492070,1718392252131,-556.27095736,0.00021917,2]
[329492072,1718392252161,-500.0,0.00021917,2]
[329492075,1718392252188,-500.0,0.00021917,2]
[329492076,1718392252213,-500.0,0.00021917,2]
[329492079,1718392252261,-509.502812,0.00021917,2]
[329492081,1718392252278,-500.0,0.00021917,2]
[329492083,1718392252293,-500.0,0.00021917,2]
[329492085,1718392252329,-500.0,0.00021917,2]
[329492088,1718392252363,-500.0,0.00021917,2]
[329492090,1718392252394,-500.0,0.00021917,2]
[329492092,1718392252424,-500.0,0.00021917,2]
[329492094,1718392252440,-151.91911981,0.00021917,2]
[329492096,1718392252458,-150.0,0.00021917,2]
[329492098,1718392252469,-388.92560294,0.00021917,2]
[329492101,1718392252483,-572.16160482,0.00021917,2]
[329492103,1718392252495,-500.0,0.00021917,2]
[329492105,1718392252507,-500.0,0.00021917,2]
[329492106,1718392252523,-500.0,0.00021917,2]
[329492109,1718392252535,-500.0,0.00021917,2]
[329492110,1718392252551,-500.0,0.00021917,2]
[329492112,1718392252569,-500.0,0.00021917,2]
[329492115,1718392252581,-500.0,0.00021917,2]
[329492117,1718392252594,-500.0,0.00021917,2]
[329492119,1718392252607,-450.16046481,0.00021917,2]
[329492120,1718392252622,-500.0,0.00021917,2]
[329492122,1718392252636,-500.0,0.00021917,2]
[329492124,1718392252664,-500.0,0.00021917,2]
[329492126,1718392252677,-500.0,0.00021917,2]
[329492128,1718392252688,-500.0,0.00021917,2]
[329492130,1718392252702,-500.0,0.00021917,2]
[329492132,1718392252716,-500.0,0.00021917,2]
[329492133,1718392252727,-500.0,0.00021917,2]
[329492135,1718392252752,-500.0,0.00021917,2]
[329492137,1718392252772,-500.0,0.00021917,2]
[329492140,1718392252790,-500.0,0.00021917,2]
[329492142,1718392252806,-202.31454813,0.00021917,2]
[329492144,1718392252825,-500.0,0.00021917,2]
[329492147,1718392252840,-564.52,0.00021917,2]
[329492148,1718392252854,-500.0,0.00021917,2]
[329492150,1718392252881,-500.0,0.00021917,2]
[329492152,1718392252894,-500.0,0.00021917,2]
[329492154,1718392252911,-500.0,0.00021917,2]
[329492156,1718392252929,-500.0,0.00021917,2]
[329492158,1718392252958,-500.0,0.00021917,2]
[329492160,1718392252979,-500.0,0.00021917,2]
[329492163,1718392253004,-500.0,0.00021917,2]
[329492165,1718392253018,-500.0,0.00021917,2]
[329492167,1718392253047,-500.0,0.00021917,2]
[329492169,1718392253069,-500.0,0.00021917,2]
[329492171,1718392253095,-500.0,0.00021917,2]
[329492173,1718392253118,-500.0,0.00021917,2]
[329492175,1718392253169,-500.0,0.00021917,2]
[329492177,1718392253215,-500.0,0.00021917,2]
[329492179,1718392253233,-500.0,0.00021917,2]
[329492181,1718392253248,-614.4108468,0.00021917,2]
[329492183,1718392253263,-500.0,0.00021917,2]
[329492185,1718392253282,-500.0,0.00021917,2]
[329492187,1718392253302,-500.0,0.00021917,2]
[329492189,1718392253317,-500.0,0.00021917,2]
[329492191,1718392253343,-500.0,0.00021917,2]
[329492193,1718392253373,-500.0,0.00021917,2]
[329492195,1718392253385,-500.0,0.00021917,2]
[329492198,1718392253434,-500.0,0.00021917,2]
[329492200,1718392253448,-553.93,0.00021917,2]
[329492202,1718392253468,-500.0,0.00021917,2]
[329492203,1718392253485,-500.0,0.00021917,2]
[329492205,1718392253496,-500.0,0.00021917,2]
[329492207,1718392253507,-500.0,0.00021917,2]
[329492208,1718392253519,-500.0,0.00021917,2]
[329492210,1718392253535,-500.0,0.00021917,2]
[329492212,1718392253555,-500.0,0.00021917,2]
[329492214,1718392253568,-500.0,0.00021917,2]
[329492216,1718392253579,-500.0,0.00021917,2]
[329492218,1718392253593,-551.22034345,0.00021917,2]
[329492220,1718392253608,-513.49,0.00021917,2]
[329492222,1718392253627,-217.96,0.00021917,2]
[329492224,1718392253640,-500.0,0.00021917,2]
[329492226,1718392253652,-500.0,0.00021917,2]
[329492228,1718392253665,-500.0,0.00021917,2]
[329492230,1718392253676,-500.0,0.00021917,2]
[329492232,1718392253708,-500.0,0.00021917,2]
[329492235,1718392253740,-500.0,0.00021917,2]
[329492237,1718392253752,-500.0,0.00021917,2]
[329492238,1718392253763,-500.0,0.00021917,2]
[329492240,1718392253777,-500.0,0.00021917,2]
[329492242,1718392253793,-526.31200238,0.00021917,2]
[329492244,1718392253807,-500.0,0.00021917,2]
[329492246,1718392253819,-500.0,0.00021917,2]
[329492248,1718392253830,-500.0,0.00021917,2]
[329492250,1718392253844,-500.0,0.00021917,2]
[329492252,1718392253858,-500.0,0.00021917,2]
[329492254,1718392253873,-500.0,0.00021917,2]
[329492256,1718392253884,-500.0,0.00021917,2]
[329492258,1718392253898,-528.21784657,0.00021917,2]
[329492261,1718392253912,-500.0,0.00021917,2]
[329492262,1718392253923,-500.0,0.00021917,2]
[329492264,1718392253933,-229.38674486,0.00021917,2]
[329492267,1718392253945,-544.63,0.00021917,2]
[329492269,1718392253965,-500.0,0.00021917,2]
[329492272,1718392254016,-500.0,0.00021917,2]
[329492274,1718392254031,-500.0,0.00021917,2]
[329492276,1718392254044,-500.0,0.00021917,2]
[329492278,1718392254061,-500.0,0.00021917,2]
[329492282,1718392254120,-869.05,0.00021917,2]
[329492284,1718392254131,-500.0,0.00021917,2]
[329492285,1718392254149,-500.0,0.00021917,2]
[329492288,1718392254172,-500.0,0.00021917,2]
[329492290,1718392254216,-500.0,0.00021917,2]
[329492292,1718392254232,-399.72494654,0.00021917,2]
[329492294,1718392254276,-500.0,0.00021917,2]
[329492296,1718392254337,-500.0,0.00021917,2]
[329492298,1718392254349,-500.0,0.00021917,2]
[329492300,1718392254362,-500.0,0.00021917,2]
[329492302,1718392254384,-500.0,0.00021917,2]
[329492304,1718392254406,-500.0,0.00021917,2]
[329492306,1718392254418,-500.0,0.00021917,2]
[329492308,1718392254435,-502.28,0.00021917,2]
[329492310,1718392254448,-500.0,0.00021917,2]
[329492313,1718392254481,-519.95434228,0.00021917,2]
[329492315,1718392254500,-500.0,0.00021917,2]
[329492316,1718392254517,-500.0,0.00021917,2]
[329492318,1718392254529,-500.0,0.00021917,2]
[329492321,1718392254550,-500.0,0.00021917,2]
[329492323,1718392254563,-500.0,0.00021917,2]
[329492325,1718392254574,-187.23975262,0.00021917,2]
[329492327,1718392254593,-500.0,0.00021917,2]
[329492329,1718392254604,-500.0,0.00021917,2]
[329492331,1718392254620,-662.78,0.00021917,2]
[329492333,1718392254633,-549.96,0.00021917,2]
[329492334,1718392254663,-20070.13,0.00021917,2]
[329492336,1718392254675,-184.08539219,0.00021917,2]
[329492338,1718392254697,-500.0,0.00021917,2]
[329492340,1718392254711,-500.0,0.00021917,2]
[329492342,1718392254724,-1313.74,0.00021917,2]
[329492344,1718392254743,-1180.34,0.00021917,2]
[329492346,1718392254758,-1884.7,0.00021917,2]
[329492348,1718392254770,-500.0,0.00021917,2]
[329492350,1718392254782,-500.0,0.00021917,2]
[329492352,1718392254805,-10290.34,0.00021917,2]
[329492353,1718392254818,-780.32,0.00021917,2]
[329492355,1718392254834,-2886.54,0.00021917,2]
[329492357,1718392254849,-500.0,0.00021917,2]
[329492359,1718392254875,-500.0,0.00021917,2]
[329492362,1718392254895,-2567.21,0.00021917,2]
[329492364,1718392254914,-500.0,0.00021917,2]
[329492366,1718392254937,-530.79,0.00021917,2]
[329492368,1718392254953,-500.0,0.00021917,2]
[329492370,1718392254969,-500.0,0.00021917,2]
[329492372,1718392254984,-500.0,0.00021917,2]
[329492374,1718392254995,-5939.52,0.00021917,2]
[329492376,1718392255006,-3956.31,0.00021917,2]
[329492378,1718392255016,-500.0,0.00021917,2]
[329492379,1718392255034,-844.82,0.00021917,2]
[329492381,1718392255052,-726.23,0.00021917,2]
[329492384,1718392255086,-505.8,0.00021917,2]
[329492386,1718392255104,-500.0,0.00021917,2]
[329492388,1718392255118,-500.0,0.00021917,2]
[329492390,1718392255137,-1127.52,0.00021917,2]
[329492391,1718392255156,-500.0,0.00021917,2]
[329492393,1718392255169,-19874.22,0.00021917,2]
[329492395,1718392255199,-3145.1,0.00021917,2]
[329492397,1718392255211,-6710.8,0.00021917,2]
[329492399,1718392255240,-1250.53,0.00021917,2]
[329492402,1718392255257,-840.46,0.00021917,2]
[329492404,1718392255276,-500.0,0.00021917,2]
[329492406,1718392255319,-609.97,0.00021917,2]
[329492408,1718392255331,-500.0,0.00021917,2]
[329492410,1718392255345,-516.68346631,0.00021917,2]
[329492412,1718392255379,-500.0,0.00021917,2]
[329492414,1718392255392,-500.0,0.00021917,2]
[329492416,1718392255407,-500.0,0.00021917,2]
[329492418,1718392255433,-2320.96,0.00021917,2]
[329492421,1718392255479,-941.01,0.00021917,2]
[329492422,1718392255494,-500.0,0.00021917,2]
[329492425,1718392255520,-500.0,0.00021917,2]
[329492427,1718392255535,-500.0,0.00021917,2]
[329492429,1718392255550,-1990.16,0.00021917,2]
[329492430,1718392255563,-1310.07,0.00021917,2]
[329492432,1718392255582,-1995.44,0.00021917,2]
[329492433,1718392255596,-932.24,0.00021917,2]
[329492435,1718392255608,-500.0,0.00021917,2]
[329492437,1718392255630,-1985.52,0.00021917,2]
[329492440,1718392255646,-500.0,0.00021917,2]
[329492442,1718392255662,-706.17,0.00021917,2]
[329492444,1718392255676,-3553.95,0.00021917,2]
[329492445,1718392255690,-516.98,0.00021917,2]
[329492447,1718392255701,-500.0,0.00021917,2]
[329492449,1718392255712,-667.46,0.00021917,2]
[329492450,1718392255724,-798.6,0.00021917,2]
[329492451,1718392255737,-1181.38,0.00021917,2]
[329492453,1718392255750,-1607.82,0.00021917,2]
[329492455,1718392255771,-571.76,0.00021917,2]
[329492458,1718392255808,-1633.94,0.00021917,2]
[329492460,1718392255833,-500.0,0.00021917,2]
[329492463,1718392255854,-5233.58,0.00021917,2]
[329492465,1718392255868,-257.34,0.00021917,2]
[329492468,1718392255891,-500.0,0.00021917,2]
[329492470,1718392255903,-16066.88,0.00021917,2]
[329492472,1718392255916,-500.0,0.00021917,2]
[329492474,1718392255951,-500.0,0.00021917,2]
[329492476,1718392255983,-2024.6,0.00021917,2]
[329492479,1718392256016,-1780.74,0.00021917,2]
[329492481,1718392256027,-500.0,0.00021917,2]
[329492483,1718392256041,-615.31,0.00021917,2]
[329492485,1718392256055,-686.88,0.00021917,2]
[329492487,1718392256068,-2372.41,0.00021917,2]
[329492488,1718392256082,-500.0,0.00021917,2]
[329492490,1718392256102,-7065.4,0.00021917,2]
[329492492,1718392256137,-504.02,0.00021917,2]
[329492493,1718392256151,-500.0,0.00021917,2]
[329492495,1718392256163,-682.34,0.00021917,2]
[329492497,1718392256174,-500.0,0.00021917,2]
[329492499,1718392256186,-444.27850472,0.00021917,2]
[329492501,1718392256199,-500.0,0.00021917,2]
[329492503,1718392256212,-500.0,0.00021917,2]
[329492505,1718392256233,-500.0,0.00021917,2]
[329492507,1718392256268,-500.0,0.00021917,2]
[329492508,1718392256279,-517.57,0.00021917,2]
[329492510,1718392256292,-1218.8,0.00021917,2]
[329492512,1718392256313,-860.59,0.00021917,2]
[329492514,1718392256337,-1861.02,0.00021917,2]
[329492516,1718392256378,-500.0,0.00021917,2]
[329492518,1718392256406,-500.0,0.00021917,2]
[329492520,1718392256423,-2686.28,0.00021917,2]
[329492524,1718392256468,-500.0,0.00021917,2]
[329492526,1718392256491,-1285.78,0.00021917,2]
[329492529,1718392256516,-959.17,0.00021917,2]
[329492532,1718392256537,-500.0,0.00021917,2]
[329492534,1718392256562,-500.0,0.00021917,2]
[329492536,1718392256586,-500.0,0.00021917,2]
[329492539,1718392256616,-724.18,0.00021917,2]
[329492540,1718392256627,-259.48559754,0.00021917,2]
[329492542,1718392256640,-500.0,0.00021917,2]
[329492544,1718392256654,-267.09593612,0.00021917,2]
[329492545,1718392256673,-664.41,0.00021917,2]
[329492547,1718392256691,-995.79,0.00021917,2]
[329492549,1718392256713,-500.0,0.00021917,2]
[329492550,1718392256728,-1056.47,0.00021917,2]
[329492552,1718392256748,-7113.76,0.00021917,2]
[329492555,1718392256782,-2812.13,0.00021917,2]
[329492557,1718392256802,-500.0,0.00021917,2]
[329492559,1718392256815,-500.0,0.00021917,2]
[329492561,1718392256840,-2505.97,0.00021917,2]
[329492562,1718392256853,-1505.05,0.00021917,2]
[329492564,1718392256865,-500.0,0.00021917,2]
[329492566,1718392256895,-547.51,0.00021917,2]
[329492567,1718392256907,-1154.85,0.00021917,2]
[329492568,1718392256918,-534.25,0.00021917,2]
[329492569,1718392256930,-865.97,0.00021917,2]
[329492570,1718392256942,-616.75,0.00021917,2]
[329492571,1718392256954,-500.0,0.00021917,2]
[329492572,1718392256965,-500.0,0.00021917,2]
[329492574,1718392256976,-630.52,0.00021917,2]
[329492576,1718392256989,-821.45,0.00021917,2]
[329492578,1718392257014,-1395.43,0.00021917,2]
[329492580,1718392257046,-500.0,0.00021917,2]
[329492583,1718392257080,-500.0,0.00021917,2]
[329492586,1718392257121,-500.0,0.00021917,2]
[329492588,1718392257138,-500.0,0.00021917,2]
[329492591,1718392257184,-597.77,0.00021917,2]
[329492593,1718392257215,-606.16,0.00021917,2]
[329492595,1718392257242,-1875.15,0.00021917,2]
[329492597,1718392257276,-500.0,0.00021917,2]
[329492600,1718392257296,-500.0,0.00021917,2]
[329492602,1718392257324,-1090.83,0.00021917,2]
[329492604,1718392257345,-500.0,0.00021917,2]
[329492613,1718392257368,-2582.01,0.00021917,2]
[329492615,1718392257576,-500.0,0.00021917,2]
[329492617,1718392257595,-500.0,0.00021917,2]
[329492619,1718392257614,-1231.56,0.00021917,2]
[329492622,1718392257636,-548.32,0.00021917,2]
[329492623,1718392257652,-500.0,0.00021917,2]
[329492626,1718392257665,-500.0,0.00021917,2]
[329492628,1718392257678,-504.46,0.00021917,2]
[329492630,1718392257693,-500.0,0.00021917,2]
[329492632,1718392257708,-5960.66,0.00021917,2]
[329492634,1718392257725,-519.23,0.00021917,2]
[329492636,1718392257739,-1085.69,0.00021917,2]
[329492638,1718392257775,-500.0,0.00021917,2]
[329492641,1718392257813,-500.0,0.00021917,2]
[329492643,1718392257847,-500.0,0.00021917,2]
[329492645,1718392257879,-526.1107459,0.00021917,2]
[329492647,1718392257893,-725.89,0.00021917,2]
[329492649,1718392257908,-500.0,0.00021917,2]
[329492650,1718392257922,-2443.66,0.00021917,2]
[329492652,1718392257937,-500.0,0.00021917,2]
[329492654,1718392257962,-500.0,0.00021917,2]
[329492656,1718392257980,-1907.49,0.00021917,2]
[329492658,1718392258006,-6901.16,0.00021917,2]
[329492660,1718392258036,-500.0,0.00021917,2]
[329492662,1718392258061,-4212.24,0.00021917,2]
[329492664,1718392258092,-955.99,0.00021917,2]
[329492666,1718392258113,-500.0,0.00021917,2]
[329492668,1718392258137,-500.0,0.00021917,2]
[329492670,1718392258153,-500.0,0.00021917,2]
[329492672,1718392258167,-500.0,0.00021917,2]
[329492673,1718392258186,-98843.11657695,0.00021917,2]
[329492675,1718392258198,-1181.94,0.00021917,2]
[329492677,1718392258217,-500.0,0.00021917,2]
[329492678,1718392258239,-895.71,0.00021917,2]
[329492680,1718392258275,-500.0,0.00021917,2]
[329492681,1718392258295,-500.0,0.00021917,2]
[329492683,1718392258313,-497.6201029,0.00021917,2]
[329492688,1718392258373,-929.86,0.00021917,2]
[329492690,1718392258396,-4264.86,0.00021917,2]
[329492692,1718392258427,-4280.98,0.00021917,2]
[329492693,1718392258439,-500.0,0.00021917,2]
[329492694,1718392258455,-1140.5,0.00021917,2]
[329492697,1718392258505,-500.0,0.00021917,2]
[329492699,1718392258529,-500.0,0.00021917,2]
[329492701,1718392258564,-1174.2,0.00021917,2]
[329492704,1718392258609,-500.0,0.00021917,2]
[329492706,1718392258627,-500.0,0.00021917,2]
[329492708,1718392258676,-500.0,0.00021917,2]
[329492710,1718392258712,-500.0,0.00021917,2]
[329492713,1718392258729,-679.57,0.00021917,2]
[329492715,1718392258764,-500.0,0.00021917,2]
[329492717,1718392258779,-500.0,0.00021917,2]
[329492719,1718392258793,-3115.57,0.00021917,2]
[329492721,1718392258809,-542.57,0.00021917,2]
[329492723,1718392258821,-604.63,0.00021917,2]
[329492726,1718392258840,-500.0,0.00021917,2]
[329492728,1718392258853,-500.0,0.00021917,2]
[329492731,1718392258874,-500.0,0.00021917,2]
[329492733,1718392258895,-500.0,0.00021917,2]
[329492734,1718392258906,-1227.53,0.00021917,2]
[329492736,1718392258920,-678.66,0.00021918,2]
[329492738,1718392258933,-232.15,0.00021918,2]
[329492740,1718392258953,-250.0,0.00021918,2]
[329492742,1718392258998,-2000.0,0.00022,2]
[329492745,1718392259019,-2381.328527,0.0002201,2]
[329492747,1718392259030,-155.0,0.00022123,2]
[329492749,1718392259063,-1413.75176323,0.00022169,2]
[329492751,1718392259082,-155.45314431,0.00022188,2]
[329492753,1718392259115,-179.39775421,0.00022188,2]
[329492755,1718392259141,-719.55136828,0.00022189,2]
[329492757,1718392259163,-155.97806679,0.00022189,3]
[329492759,1718392259176,-1236.28417491,0.00022189,2]
[329492760,1718392259192,-210.70788545,0.00022189,2]
[329492762,1718392259206,-162.78509319,0.00022189,2]
[329492765,1718392259221,-239.88319152,0.00022189,2]
[329492767,1718392259247,-189.35448094,0.00022189,2]
[329492769,1718392259265,-282.95218659,0.00022189,2]
[329492771,1718392259284,-156.84450477,0.00022189,2]
[329492773,1718392259301,-538.60151429,0.00022189,2]
[329492775,1718392259323,-307.73308929,0.00022189,2]
[329492777,1718392259338,-651.73707461,0.00022189,2]
[329492778,1718392259363,-210.09854251,0.00022189,2]
[329492779,1718392259388,-275.92831165,0.00022189,2]
[329492780,1718392259434,-645.83379313,0.00022189,2]
[329492781,1718392259457,-4291.83751585,0.00022189,2]
[329492784,1718392259492,-155.0,0.00022189,2]
[329492786,1718392259518,-201.12551533,0.00022189,2]
[329492788,1718392259543,-155.45078624,0.00022189,2]
[329492791,1718392259573,-160.95528543,0.00022189,2]
[329492793,1718392259606,-287.98703881,0.00022189,2]
[329492794,1718392259619,-211.49180633,0.00022189,2]
[329492797,1718392259643,-10977.35791684,0.00022189,2]
[329492799,1718392259659,-263.47030532,0.00022189,2]
[329492801,1718392259674,-229.35922986,0.00022189,2]
[329492802,1718392259695,-155.0,0.00022189,2]
[329492804,1718392259721,-156.4486,0.00022189,2]
[329492806,1718392259736,-182.46062707,0.00022189,2]
[329492808,1718392259756,-157.44296407,0.00022189,2]
[329492810,1718392259774,-248.74314656,0.00022189,2]
[329492812,1718392259803,-258.03533821,0.00022189,2]
[329492814,1718392259823,-327.09364323,0.00022189,10]
[329492816,1718392259855,-1000.0,0.0002219,2]
[329492817,1718392259879,-572.02514398,0.0002219,2]
[329492818,1718392259915,-626.25690855,0.0002219,2]
[329492821,1718392259942,-490.61954782,0.0002219,2]
[329492824,1718392259996,-409.04522309,0.0002219,2]
[329492826,1718392260051,-268.74584708,0.0002219,2]
[329492827,1718392260071,-1618.85939652,0.0002219,2]
[329492829,1718392260105,-155.54684316,0.0002219,2]
[329492832,1718392260151,-198.67450643,0.0002219,2]
[329492834,1718392260196,-217.36329428,0.0002219,2]
[329492836,1718392260210,-160.78646615,0.0002219,2]
[329492838,1718392260231,-156.59999781,0.0002219,2]
[329492839,1718392260301,-270.59646204,0.0002219,2]
[329492841,1718392260318,-296.73266768,0.0002219,2]
[329492843,1718392260332,-155.0,0.0002219,2]
[329492845,1718392260351,-176.51048241,0.0002219,2]
[329492846,1718392260373,-3018.65921685,0.0002219,2]
[329492848,1718392260391,-220.89856811,0.0002219,2]
[329492850,1718392260402,-957.37362739,0.0002219,2]
[329492852,1718392260422,-156.38238988,0.0002219,2]
[329492854,1718392260439,-594.28256963,0.00022191,3]
[329492856,1718392260454,-511.19,0.00022191,3]
[329492857,1718392260476,-500.0,0.00022191,3]
[329492859,1718392260490,-500.0,0.00022191,3]
[329492861,1718392260534,-304.13103888,0.00022191,3]
[329492863,1718392260560,-256.73673152,0.00022191,3]
[329492866,1718392260583,-500.0,0.00022191,2]
[329492867,1718392260630,-575.2,0.00022191,3]
[329492870,1718392260643,-500.0,0.00022191,3]
[329492872,1718392260658,-500.0,0.00022191,2]
[329492875,1718392260700,-556.55,0.00022191,3]
[329492877,1718392260716,-500.0,0.00022191,3]
[329492880,1718392260727,-500.0,0.00022191,3]
[329492882,1718392260769,-166.55987832,0.00022191,2]
[329492884,1718392260788,-500.0,0.00022191,3]
[329492887,1718392260803,-500.0,0.00022191,3]
[329492889,1718392260825,-500.0,0.00022191,3]
[329492891,1718392260857,-500.0,0.00022191,3]
[329492893,1718392260869,-500.0,0.00022191,3]
[329492895,1718392260883,-4184.28834802,0.00022191,2]
[329492897,1718392260893,-500.0,0.00022191,3]
[329492898,1718392260921,-500.0,0.00022191,3]
[329492900,1718392260933,-348.510865,0.00022191,3]
[329492901,1718392260968,-500.0,0.00022191,3]
[329492903,1718392261026,-500.0,0.00022191,3]
[329492907,1718392261098,-210.13,0.00022191,3]
[329492909,1718392261131,-500.0,0.00022191,3]
[329492910,1718392261142,-235.41,0.00022191,3]
[329492911,1718392261161,-500.0,0.00022191,3]
[329492912,1718392261212,-500.0,0.00022191,3]
[329492913,1718392261242,-500.0,0.00022191,3]
[329492914,1718392261260,-500.0,0.00022191,3]
[329492916,1718392261297,-500.0,0.00022191,3]
[329492918,1718392261318,-500.0,0.00022191,3]
[329492919,1718392261346,-500.0,0.00022191,3]
[329492921,1718392261360,-500.0,0.00022191,3]
[329492923,1718392261391,-500.0,0.00022191,3]
[329492925,1718392261420,-150.0,0.00022191,3]
[329492928,1718392261476,-500.0,0.00022191,3]
[329492930,1718392261492,-500.0,0.00022191,3]
[329492932,1718392261525,-500.0,0.00022191,3]
[329492933,1718392261560,-500.0,0.00022191,3]
[329492936,1718392261576,-500.0,0.00022191,3]
[329492938,1718392261586,-174.07725793,0.00022191,3]
[329492940,1718392261607,-500.0,0.00022191,3]
[329492942,1718392261618,-500.0,0.00022191,3]
[329492944,1718392261629,-500.0,0.00022191,3]
[329492945,1718392261641,-500.0,0.00022191,3]
[329492948,1718392261690,-500.0,0.00022191,3]
[329492950,1718392261702,-500.0,0.00022191,3]
[329492952,1718392261718,-500.0,0.00022191,3]
[329492954,1718392261737,-564.52,0.00022191,3]
[329492955,1718392261753,-500.0,0.00022191,3]
[329492957,1718392261780,-360.34,0.00022191,3]
[329492959,1718392261792,-500.0,0.00022191,3]
[329492961,1718392261825,-615.1049493,0.00022191,3]
[329492962,1718392261852,-500.0,0.00022191,3]
[329492964,1718392261868,-500.0,0.00022191,3]
[329492966,1718392261887,-500.0,0.00022191,3]
[329492968,1718392261908,-500.0,0.00022191,3]
[329492969,1718392261935,-500.0,0.00022191,3]
[329492970,1718392261967,-500.0,0.00022191,3]
[329492971,1718392262001,-500.0,0.00022191,3]
[329492972,1718392262015,-500.0,0.00022191,3]
[329492973,1718392262025,-500.0,0.00022191,3]
[329492974,1718392262035,-512.69821923,0.00022191,3]
[329492976,1718392262048,-553.93,0.00022191,3]
[329492978,1718392262084,-500.0,0.00022191,3]
[329492980,1718392262140,-500.0,0.00022191,3]
[329492982,1718392262201,-500.0,0.00022191,3]
[329492984,1718392262213,-500.0,0.00022191,3]